Workbook

Sheet Enter Your Data Here
A1: To learn more about how this prediction tool works (and about bell curves in general), click here to check out our blog post.
C7: 3) For your goal, select from the dropdown menu how much of an increase you'd like to see.
A9: 2) PASTE DATA HERE (No blank rows)
C10: Click here to set desired increase -------------> | J10: 1 Std. Deviation

Sheet The Report
B1: To learn more about how this prediction tool works (and about bell curves in general), click here to check out our blog post.
B2: Your old average: | C2: =ROUND(Mean,6) ->  | D2: ="Your target average (based on your desired "&IF('Enter Your Data Here'!J10="1 Std. Deviation",'Enter Your Data Here'!J10,IF('Enter Your Data Here'!J10="2 Std. Deviations",'Enter Your Data Here'!J10,'Enter Your Data Here'!J10*100&"%"))&" increase):" -> Your target average (based on your desired 1 Std. Deviation increase): | G2: =ROUND(Desired_Mean,6) ->  | H2: ="Probabilty of reaching target if no changes are made: " -> Probabilty of reaching target if no changes are made: | I2: =ROUND(Probability_of_Target,0)&"% †" -> 
B31: † This number reflects the likelihood of reaching your goal if you were to make no changes. If the number is greater than 35%, that may mean that you have set the bar too low. Try selecting a larger increase from the dropdown menu on the previous page.

Sheet Control Settings-DO NOT TOUCH! (hidden)
A1: Formulas | G1: Z | H1: X | I1: Y | J1: Area | K1: 1 Std. Deviation
A2: Mean | B2: =AVERAGE('Enter Your Data Here'!A10:A100008) ->  | G2: =Z_Minimum -> -3 | H2: =G2*Standard_Deviation+Mean ->  | I2: =_xlfn.NORM.DIST(H2,Mean,Standard_Deviation,FALSE) ->  | J2: =IF(OR(H2>Right_Shading,H2<Left_Shading),NA(),I2) ->  | K2: 2 Std. Deviations | O2: =1-(Mean/B18) ->  | Q2: 0.2857751024
A3: Standard Deviation | B3: =_xlfn.STDEV.S('Enter Your Data Here'!A10:A100008) ->  | G3: =(Z_Maximum-Z_Minimum)/(Number_of_Rows-1)+G2 -> -9 | K3: 0.05 | O3: =1-(Mean/B19) ->  | Q3: 0.4445180216
A4: Number of Rows | B4: =COUNT('Enter Your Data Here'!A10:A1000008) -> 0 | G4: -15 | K4: 0.1
A5: Z-Minimum | B5: -3 | G5: -21 | K5: 0.15
A6: Z-Maximum | B6: 3 | G6: -27 | K6: 0.2 | V6: =IF('Enter Your Data Here'!J10="1 Std. Deviation",Mean+(Mean*0.285775),"false") -> 
A7: Percentage Unshaded | B7: =_xlfn.NORM.S.DIST($B$16,TRUE) ->  | G7: -33 | K7: 0.25
A8: Percentage Shaded | B8: 0.9999999 | G8: -39 | K8: 0.3
G9: -45 | K9: 0.35
A10: Calculations | G10: -51 | K10: 0.4
A11: Left Shading | B11: =NORMSINV(Percentage_Unshaded)*(Standard_Deviation)+Mean ->  | G11: -57 | K11: 0.45
A12: Right Shading | B12: =NORMSINV(Percentage_Shaded)*(Standard_Deviation)+Mean ->  | G12: -63 | K12: 0.5
A13: Curve Minimum | B13: =Z_Minimum*Standard_Deviation+Mean ->  | G13: -69 | K13: 0.55
A14: Curve Maximum | B14: =Z_Maximum*Standard_Deviation+Mean ->  | G14: -75 | K14: 0.6
A15: Desired Mean | B15: =IF('Enter Your Data Here'!J10="1 Std. Deviation",Mean+Standard_Deviation,IF('Enter Your Data Here'!J10="2 Std. Deviations",Mean+(Standard_Deviation*2),Mean+(Mean*'Enter Your Data Here'!J10))) ->  | G15: -81 | K15: 0.65
A16: Desired Z | B16: =(Desired_Mean-Mean)/Standard_Deviation ->  | G16: -87 | K16: 0.7
A17: Probability of Target | B17: =(1-PctClear)*100 ->  | G17: -93 | K17: 0.75
A18: One SD Increase | B18: =(Mean+Standard_Deviation) ->  | G18: -99 | K18: 0.8
A19: Two SD Increase | B19: =(Mean+Standard_Deviation+Standard_Deviation) ->  | G19: -105 | K19: 0.85
G20: -111 | K20: 0.9
G21: -117
A22: t score | B22: =(Desired_Mean-Mean)/(Standard_Deviation/SQRT(Number_of_Rows)) ->  | G22: -123
G23: -129
B24: =PctShade-PctClear ->  | G24: -135
B25: =NORMSINV(Percentage_Shaded)*(Standard_Deviation)+Desired_Mean ->  | G25: -141
B26: =_xlfn.NORM.S.DIST(Desired_Z,TRUE) ->  | G26: -147
G27: -153
G28: -159
G29: -165
G30: -171
G31: -177
G32: -183
G33: -189
G34: -195
G35: -201
G36: -207
G37: -213
G38: -219
G39: -225
G40: -231
G41: -237
G42: -243
G43: -249
G44: -255
G45: -261
G46: -267
G47: -273
G48: -279
G49: -285
G50: -291
G51: -297
G52: -303
G53: -309
G54: -315
G55: -321
G56: -327
G57: -333
G58: -339
G59: -345
G60: -351
G61: -357
G62: -363
G63: -369
G64: -375
G65: -381
G66: -387 | H66: =G66*Standard_Deviation+Mean ->  | I66: =_xlfn.NORM.DIST(H66,Mean,Standard_Deviation,FALSE) ->  | J66: =IF(OR(H66>Right_Shading,H66<Left_Shading),NA(),I66) -> 
G67: =(Z_Maximum-Z_Minimum)/(Number_of_Rows-1)+G66 -> -393
G68: -399
G69: -405
G70: -411
G71: -417
G72: -423
G73: -429
G74: -435
G75: -441
G76: -447
G77: -453
G78: -459
G79: -465
G80: -471
G81: -477
G82: -483
G83: -489
G84: -495
G85: -501
G86: -507
G87: -513
G88: -519
G89: -525
G90: -531
G91: -537
G92: -543
G93: -549
G94: -555
G95: -561
G96: -567
G97: -573
G98: -579
G99: -585
G100: -591
G101: -597
G102: -603
G103: -609
G104: -615
G105: -621
G106: -627
G107: -633
G108: -639
G109: -645
G110: -651
G111: -657
G112: -663
G113: -669
G114: -675
G115: -681
G116: -687
G117: -693
G118: -699
G119: -705
G120: -711
G121: -717
G122: -723
G123: -729
G124: -735
G125: -741
G126: -747
G127: -753
G128: -759
G129: -765
G130: -771 | H130: =G130*Standard_Deviation+Mean ->  | I130: =_xlfn.NORM.DIST(H130,Mean,Standard_Deviation,FALSE) ->  | J130: =IF(OR(H130>Right_Shading,H130<Left_Shading),NA(),I130) -> 
G131: =(Z_Maximum-Z_Minimum)/(Number_of_Rows-1)+G130 -> -777
G132: -783
G133: -789
G134: -795
G135: -801
G136: -807
G137: -813
G138: -819
G139: -825
G140: -831
G141: -837
G142: -843
G143: -849
G144: -855
G145: -861
G146: -867
G147: -873
G148: -879
G149: -885
G150: -891
G151: -897
G152: -903
G153: -909
G154: -915
G155: -921
G156: -927
G157: -933
G158: -939
G159: -945
G160: -951
G161: -957
G162: -963
G163: -969
G164: -975
G165: -981
G166: -987
G167: -993
G168: -999
G169: -1005
G170: -1011
G171: -1017
G172: -1023
G173: -1029
G174: -1035
G175: -1041
G176: -1047
G177: -1053
G178: -1059
G179: -1065
G180: -1071
G181: -1077
G182: -1083
G183: -1089
G184: -1095
G185: -1101
G186: -1107
G187: -1113
G188: -1119
G189: -1125
G190: -1131
G191: -1137
G192: -1143
G193: -1149
G194: -1155 | H194: =G194*Standard_Deviation+Mean ->  | I194: =_xlfn.NORM.DIST(H194,Mean,Standard_Deviation,FALSE) ->  | J194: =IF(OR(H194>Right_Shading,H194<Left_Shading),NA(),I194) -> 
G195: =(Z_Maximum-Z_Minimum)/(Number_of_Rows-1)+G194 -> -1161
G196: -1167
G197: -1173
G198: -1179
G199: -1185
G200: -1191
... 4300 more rows
